bitfinex/quotes_SOLUSD_20250125
["timestamp","ask_amount","ask_price","bid_price","bid_amount"]
[1737822434715,0.063,255.2,255.18,3.9188]
[1737822434899,0.063,255.2,255.16,10.5319]
[1737822435100,0.063,255.2,255.16,6.6129]
[1737822435313,0.063,255.2,255.16,10.5319]
[1737822437023,0.063,255.2,255.16,6.6129]
[1737822437190,0.063,255.2,255.1,10.2165]
[1737822437899,0.063,255.2,255.11,23.776884]
[1737822438315,0.063,255.2,255.13,23.776884]
[1737822438524,0.063,255.2,255.13,43.776884]
[1737822439333,0.063,255.2,255.14,3.9194]
[1737822441311,0.16909772,255.2,255.1,11.11020228]
[1737822442922,0.063,255.2,255.1,11.11020228]
[1737822443103,0.063,255.2,255.12,3.9197]
[1737822443505,0.063,255.2,255.13,23.776884]
[1737822443903,0.063,255.2,255.16,24.67078628]
[1737822444225,0.063,255.2,255.19,23.776884]
[1737822444934,0.063,255.2,255.19,24.776884]
[1737822445223,0.063,255.26,255.12,13.719]
[1737822445224,0.063,255.26,255.24,24.67078628]
[1737822445729,0.063,255.26,255.24,25.67078628]
[1737822446525,0.063,255.26,255.25,3.9177]
[1737822446927,0.063,255.26,255.25,27.694584]
[1737822447100,0.063,255.34,255.32,0.89390228]
[1737822447306,0.063,255.34,255.32,24.67078628]
[1737822447710,0.0001,255.33,255.32,32.95558628]
[1737822448022,0.0331,255.35,255.34,0.89390228]
[1737822448219,0.0331,255.35,255.34,24.67078628]
[1737822448518,71.9991028,255.45,255.4,23.776884]
[1737822448721,71.9991028,255.45,255.38,20.89390228]
[1737822448898,0.063,255.46,255.38,20.89390228]
[1737822449094,0.063,255.46,255.4,0.89390228]
[1737822449326,0.063,255.46,255.42,20.0]
[1737822450022,0.063,255.46,255.45,43.776884]
[1737822450527,0.063,255.46,255.42,1.0]
[1737822450528,0.063,255.46,255.42,3.9149]
[1737822450906,0.063,255.46,255.4,3.9153]
[1737822451313,0.063,255.46,255.39,23.776884]
[1737822451925,0.063,255.46,255.41,0.89390228]
[1737822452115,0.063,255.46,255.42,23.776884]
[1737822452317,0.063,255.46,255.4,23.776884]
[1737822452628,0.063,255.46,255.41,23.9152]
[1737822452824,0.063,255.46,255.37,0.89390228]
[1737822453006,0.063,255.46,255.39,3.9155]
[1737822453398,0.063,255.46,255.37,4.80970228]
[1737822453630,0.063,255.46,255.37,3.9158]
[1737822456028,0.063,255.46,255.37,23.9158]
[1737822456636,0.063,255.46,255.37,3.9158]
[1737822456810,0.063,255.46,255.39,3.9155]
[1737822457236,0.063,255.46,255.4,23.776884]
[1737822457728,0.063,255.46,255.44,0.89390228]
[1737822457914,0.063,255.46,255.45,23.776884]
[1737822458922,0.063,255.46,255.45,27.691484]
[1737822459931,0.063,255.46,255.45,3.9146]
[1737822460133,0.063,255.46,255.45,47.691484]
[1737822460913,0.063,255.47,255.46,25.67078628]
[1737822461129,0.0001,255.47,255.46,25.67078628]
[1737822461835,0.03,255.58,255.57,20.89390228]
[1737822462010,0.03,255.58,255.57,44.67078628]
[1737822462935,0.03,255.58,255.57,48.58358628]
[1737822463435,0.10609772,255.73,255.63,23.776884]
[1737822463941,1.5049,255.77,255.66,0.89390228]
[1737822464112,0.10609772,255.82,255.7,0.89390228]
[1737822464447,4.2417,255.78,255.71,23.776884]
[1737822464616,0.10609772,255.82,255.71,23.776884]
[1737822465009,0.10609772,255.82,255.71,27.687384]
[1737822466838,0.10609772,255.8,255.68,20.0]
[1737822467041,0.10609772,255.76,255.68,20.0]
[1737822467343,0.10609772,255.73,255.62,0.89390228]
[1737822467541,0.10609772,255.73,255.66,20.0]
[1737822467937,0.10609772,255.73,255.63,23.776884]
[1737822468121,2.84339772,255.73,255.6,3.9123]
[1737822468629,0.10609772,255.71,255.6,3.9123]
[1737822468836,0.10609772,255.69,255.59,6.0911]
[1737822469139,0.10609772,255.69,255.6,23.776884]
[1737822469341,2.7373,255.73,255.63,20.0]
[1737822469813,2.84339772,255.73,255.63,20.0]
[1737822470018,0.10609772,255.75,255.63,20.89390228]
[1737822470743,8.88229772,255.77,255.65,23.776884]
[1737822471247,2.84289772,255.77,255.65,23.776884]
[1737822471414,0.10609772,255.77,255.65,23.776884]
[1737822471615,0.10609772,255.79,255.68,20.0]
[1737822471832,0.10609772,255.79,255.7,20.0]
[1737822472221,0.10609772,255.77,255.7,20.0]
[1737822472521,0.10609772,255.77,255.64,13.691]
[1737822472522,0.10609772,255.75,255.64,3.9117]
[1737822472721,0.10609772,255.75,255.68,20.0]
[1737822473245,0.063,255.77,255.68,20.0]
[1737822473821,0.063,255.77,255.69,23.776884]
[1737822474021,0.10609772,255.76,255.65,20.0]
[1737822474553,0.063,255.77,255.6,3.9123]
[1737822474554,0.10609772,255.72,255.6,3.9123]
[1737822474722,0.10609772,255.72,255.61,23.776884]
[1737822475748,0.10609772,255.7,255.61,23.776884]
[1737822475946,1.0,255.65,255.61,23.776884]
[1737822476142,1.0,255.65,255.6,3.9123]
[1737822476340,1.0,255.65,255.59,0.03]
[1737822476539,0.10609772,255.64,255.59,0.03]
[1737822476846,0.10609772,255.62,255.59,0.03]
[1737822477353,0.10609772,255.6,255.59,0.03]
[1737822477735,0.10609772,255.62,255.59,0.03]
[1737822478136,0.10609772,255.6,255.59,0.03]
[1737822478846,2.84469772,255.6,255.59,0.03]
[1737822480651,0.10609772,255.6,255.59,0.03]
[1737822484234,0.6,255.67,255.59,0.03]
[1737822484235,0.063,255.73,255.65,1.0]
[1737822484441,0.063,255.77,255.73,1.0]
[1737822484760,0.063,255.77,255.73,6.4573]
[1737822485565,0.063,255.77,255.74,3.9102]
[1737822485758,0.063,255.77,255.73,23.776884]
[1737822485939,0.063,255.77,255.72,20.0]
[1737822486140,0.063,255.77,255.67,6.4573]
[1737822486459,0.063,255.77,255.74,20.0]
[1737822486658,0.063,255.77,255.75,24.16772934]
[1737822488271,2.7652,255.9,255.85,1.0]
[1737822488564,0.03,255.9,255.89,43.776884]
[1737822489264,0.03,255.9,255.84,1.0]
[1737822489558,0.03,255.9,255.81,20.0]
[1737822489860,0.03,255.9,255.86,23.776884]
[1737822490165,0.03,255.9,255.87,0.39071002]
[1737822490348,0.03,255.9,255.89,20.0]
[1737822490542,0.03,255.9,255.84,23.776884]
[1737822490862,0.03,255.9,255.87,20.0]
[1737822491239,0.03,255.9,255.86,20.0]
[1737822491864,0.03,255.9,255.87,0.39070884]
[1737822492446,0.03,255.9,255.87,24.16759284]
[1737822492659,0.03,255.9,255.82,20.0]
[1737822492854,0.03,255.9,255.79,0.39076186]
[1737822493561,0.03,255.9,255.82,20.0]
[1737822493961,0.03,255.9,255.76,10.3671]
[1737822494154,0.03,255.9,255.76,6.4573]
[1737822494360,0.03,255.9,255.74,0.39085413]
[1737822494947,0.03,255.9,255.75,43.776884]
[1737822495154,20.0,255.88,255.76,0.39086354]
[1737822495775,2.7357,255.87,255.73,20.39089298]
[1737822495980,2.7357,255.87,255.73,20.0]
[1737822496482,2.7357,255.87,255.73,20.39092945]
[1737822496771,2.7357,255.87,255.74,23.776884]
[1737822496944,2.7355,255.89,255.77,20.0]
[1737822497146,0.03,255.9,255.78,24.16772311]
[1737822497347,2.7654,255.9,255.78,0.39083911]
[1737822497558,2.7654,255.9,255.73,0.39085689]
[1737822497773,0.03,255.9,255.73,4.30105689]
[1737822498475,0.03,255.9,255.78,23.776884]
[1737822498661,0.03,255.9,255.79,0.39082575]
[1737822499168,0.03,255.9,255.74,0.39086441]
[1737822499374,20.0,255.89,255.71,4.30136503]
[1737822499676,20.0,255.89,255.67,23.9112]
[1737822499677,9.5747,255.88,255.67,23.9112]
[1737822499964,9.5747,255.88,255.69,0.39094952]
[1737822500165,23.776884,255.83,255.59,0.03]
[1737822500473,20.0,255.8,255.62,20.0]
[1737822500656,20.0,255.8,255.66,20.0]
[1737822500857,23.776884,255.83,255.59,3.9424]
[1737822500858,20.0,255.79,255.59,3.9424]
[1737822501076,20.0,255.79,255.6,0.39112764]
[1737822501279,20.0,255.79,255.63,20.0]
[1737822501482,0.6,255.82,255.64,0.39107612]
[1737822501657,20.0,255.81,255.67,20.0]
[1737822501852,7.7301,255.84,255.71,20.0]
[1737822502366,10.4662,255.84,255.68,0.39098217]
[1737822502684,20.0,255.81,255.67,23.776884]
[1737822503252,20.0,255.81,255.68,0.39102122]
[1737822503462,10.4662,255.84,255.71,23.776884]
[1737822503463,7.7301,255.84,255.71,23.776884]
[1737822503687,7.7301,255.84,255.72,0.39094013]
[1737822503978,7.7301,255.84,255.74,20.0]
[1737822504290,10.4662,255.84,255.63,3.9119]
[1737822504459,20.0,255.81,255.64,0.39102904]
[1737822504984,20.0,255.81,255.67,20.0]
[1737822505187,10.4662,255.84,255.69,23.776884]
[1737822505188,7.7301,255.84,255.69,23.776884]
[1737822505371,7.7301,255.84,255.76,20.0]
[1737822505573,7.7301,255.84,255.7,0.39091513]
[1737822505760,7.7301,255.84,255.64,0.39097785]
[1737822506079,7.7301,255.84,255.67,43.776884]
[1737822506080,10.4662,255.84,255.67,43.776884]
[1737822506385,10.4662,255.84,255.68,0.39099693]
[1737822506569,7.7301,255.84,255.68,0.39099693]
[1737822508186,7.7301,255.84,255.73,20.0]
[1737822508384,7.7301,255.84,255.74,0.39091576]
[1737822508587,1.6417,255.84,255.74,24.16779976]
[1737822508884,1.6417,255.84,255.72,20.0]
[1737822509187,1.6417,255.84,255.73,24.16782401]
[1737822509682,6.625,255.9,255.77,23.776884]
[1737822509882,6.625,255.9,255.79,23.776884]
[1737822510063,6.625,255.9,255.8,0.39082303]
[1737822510382,9.3605,255.9,255.79,27.686284]
[1737822511067,9.3605,255.9,255.79,3.9094]
[1737822511377,9.3605,255.9,255.78,20.0]
[1737822512685,9.3605,255.9,255.79,4.30027646]
[1737822513267,9.3605,255.9,255.78,20.0]
[1737822515167,20.0,255.87,255.76,0.39085256]
[1737822515366,20.0,255.87,255.68,3.9111]
[1737822515684,20.0,255.87,255.74,20.0]
[1737822515861,20.0,255.87,255.75,0.39090261]
[1737822516059,20.0,255.87,255.74,20.0]
[1737822516878,20.0,255.87,255.74,23.9101]
[1737822516879,2.7358,255.86,255.74,23.9101]
[1737822517297,2.7358,255.86,255.74,20.0]
[1737822517759,9.5754,255.86,255.74,20.0]
[1737822520589,9.5754,255.86,255.74,20.03]
[1737822521261,9.5754,255.86,255.74,0.03]
[1737822521786,9.5754,255.86,255.74,20.03]
[1737822522167,9.5754,255.86,255.74,0.03]
[1737822522785,9.5754,255.86,255.74,20.03]
[1737822522990,2.7358,255.86,255.75,0.39093987]
[1737822523692,2.7358,255.86,255.74,23.9402]
[1737822523878,2.7358,255.86,255.75,4.30083512]
[1737822524597,2.7358,255.86,255.74,20.03]
[1737822524790,2.7358,255.86,255.74,0.03]
[1737822524985,9.5754,255.86,255.74,0.03]
[1737822525188,9.5754,255.86,255.74,20.03]
[1737822525392,2.7358,255.86,255.74,23.9401]
[1737822525800,2.7358,255.86,255.75,0.3909248]
[1737822526185,20.0,255.87,255.76,3.9099]
[1737822526379,2.7355,255.89,255.77,0.39085606]
[1737822526584,2.7355,255.89,255.76,20.0]
[1737822526884,20.0,255.86,255.74,0.03]
[1737822527404,1.5726,255.85,255.74,0.03]
[1737822528605,2.736,255.84,255.74,0.03]
[1737822530201,1.5726,255.85,255.74,0.42092164]
[1737822530498,1.5726,255.85,255.77,20.0]
[1737822530681,1.5726,255.85,255.78,0.39084954]
[1737822531499,1.5726,255.85,255.77,20.0]
[1737822532075,1.5726,255.85,255.75,4.30085191]
[1737822532298,4.3086,255.85,255.75,3.91]
[1737822532492,4.3716,255.85,255.75,20.0]
[1737822532785,4.3716,255.85,255.75,20.39090421]
[1737822533183,4.3716,255.85,255.75,20.0]
[1737822533379,4.3716,255.85,255.75,20.39091406]
[1737822533580,1.6356,255.85,255.76,3.9099]
[1737822535291,4.3716,255.85,255.74,0.03]
[1737822535497,4.3716,255.85,255.74,0.42093315]
[1737822536580,4.3716,255.85,255.74,0.03]
[1737822536910,4.3716,255.85,255.74,4.33103854]
[1737822538514,4.3716,255.85,255.75,0.39094755]
[1737822539719,4.3716,255.85,255.74,0.42088516]
[1737822540708,4.3716,255.85,255.74,3.9402]
[1737822541216,4.3716,255.85,255.74,0.03]
[1737822541913,4.3716,255.85,255.74,3.9401]
[1737822543523,4.3716,255.85,255.76,3.9099]
[1737822544313,1.6356,255.85,255.76,3.9099]
[1737822545009,1.6356,255.85,255.77,0.39089026]
[1737822545405,1.6356,255.85,255.76,3.9099]
[1737822546909,4.3716,255.85,255.76,3.9099]
[1737822547110,4.3716,255.85,255.74,3.94]
[1737822547412,4.3716,255.85,255.74,0.03]
[1737822547413,20.0,255.84,255.74,0.03]
[1737822547597,20.0,255.82,255.74,0.03]
[1737822548616,2.7364,255.81,255.74,0.03]
[1737822551930,4.3715,255.85,255.74,0.03]
[1737822552303,1.6356,255.85,255.74,0.03]
[1737822552505,4.3715,255.85,255.74,0.03]
[1737822553505,1.6356,255.85,255.74,0.03]
[1737822554229,4.3716,255.85,255.74,0.03]
[1737822554414,11.2115,255.85,255.74,0.03]
[1737822555302,20.0,255.82,255.74,0.03]
[1737822556195,26.841,255.81,255.74,0.03]
[1737822557425,29.5774,255.81,255.74,0.03]
[1737822559131,2.7364,255.81,255.74,0.03]
[1737822559912,22.7362,255.83,255.74,0.03]
[1737822561222,9.5766,255.83,255.74,0.03]
[1737822561426,20.0,255.79,255.74,0.03]
[1737822562003,20.0,255.75,255.74,0.03]
[1737822562214,1.6485,255.77,255.74,0.03]
[1737822562831,25.776884,255.76,255.63,0.03]
[1737822563030,25.776884,255.76,255.59,0.03]
[1737822563031,53.776884,255.67,255.59,0.03]
[1737822563214,11.183,255.66,255.59,0.03]
[1737822563547,10.183,255.66,255.59,0.03]
[1737822564331,20.0,255.63,255.59,0.03]
[1737822564849,2.7384,255.62,255.59,0.03]
[1737822565524,43.776884,255.61,255.59,0.03]
[1737822565731,44.376884,255.61,255.59,0.03]
[1737822565918,25.425384,255.6,255.59,0.03]
[1737822566104,20.0,255.57,255.48,0.03]
[1737822566307,20.0,255.58,255.48,0.03]
[1737822566716,2.7389,255.57,255.48,0.03]
[1737822567429,20.0,255.58,255.48,0.03]
[1737822567798,33.561416,255.58,255.48,0.03]
[1737822568003,22.7389,255.58,255.48,0.03]
[1737822568327,38.402491,255.58,255.48,0.03]
[1737822570048,15.663591,255.58,255.48,0.03]
[1737822570643,6.4385,255.61,255.48,0.03]
[1737822570644,3.1,255.61,255.48,24.19821209]
[1737822570943,17.307322,255.66,255.48,24.19821209]
[1737822571149,17.307322,255.66,255.51,20.0]
[1737822571455,3.1,255.71,255.56,43.776884]
[1737822571626,3.1,255.71,255.57,0.39112669]
[1737822571956,3.1,255.71,255.59,23.776884]
[1737822572125,3.1,255.71,255.6,0.39112391]
[1737822573955,5.8375,255.71,255.58,4.30374958]
[1737822574552,5.8375,255.71,255.58,0.39114958]
[1737822577621,2.7375,255.71,255.58,28.08053358]
[1737822578644,2.7375,255.71,255.58,0.39114958]
[1737822579038,2.7375,255.71,255.56,20.3911803]
[1737822579635,2.7375,255.71,255.57,23.776884]
[1737822579842,2.7375,255.71,255.58,0.39115413]
[1737822580735,2.7375,255.71,255.58,4.33365413]
[1737822581030,2.8005,255.71,255.58,4.33365413]
[1737822581246,2.8005,255.71,255.58,3.9425]
[1737822581851,2.8005,255.71,255.58,0.03]
[1737822584163,0.063,255.71,255.61,23.776884]
[1737822584336,0.063,255.71,255.62,0.39105104]
[1737822585236,0.063,255.71,255.66,20.0]
[1737822585452,0.063,255.71,255.67,0.39100119]
[1737822585754,0.063,255.71,255.67,24.16788519]
[1737822585931,0.063,255.71,255.7,20.0]
[1737822586132,0.063,255.71,255.7,23.9108]
[1737822587463,0.0001,255.71,255.7,48.07864221]
[1737822587759,0.063,255.81,255.78,20.0]
[1737822588057,0.063,255.81,255.79,0.3908289]
[1737822588359,0.063,255.81,255.79,24.1677129]
[1737822589748,0.063,255.81,255.8,27.686184]
[1737822593360,0.063,255.81,255.79,0.3908289]
[1737822593563,0.063,255.81,255.8,0.39084863]
[1737822593773,0.063,255.81,255.8,20.39084863]
[1737822595163,0.063,255.81,255.8,28.07703263]
[1737822598368,0.063,255.81,255.8,0.39084863]
[1737822598558,0.063,255.81,255.79,0.39084797]
[1737822598741,0.063,255.81,255.78,20.0]
[1737822598941,0.063,255.81,255.76,4.30066426]
[1737822600152,0.063,255.81,255.8,20.0]
[1737822600470,0.063,255.81,255.8,28.07698393]
[1737822601441,0.063,255.85,255.84,23.776884]
[1737822601667,0.063,255.85,255.84,24.16760317]
[1737822601846,0.063,255.85,255.84,0.39071917]
[1737822602246,0.063,255.85,255.84,20.39071917]
[1737822602474,0.063,255.85,255.84,48.07620317]
[1737822603145,0.063,255.85,255.84,0.39071917]
[1737822603346,0.063,255.85,255.84,0.39079014]
[1737822604262,0.063,255.85,255.81,3.909]
[1737822604463,0.063,255.85,255.77,0.39080277]
[1737822604649,0.063,255.85,255.77,4.30040277]
[1737822605770,0.063,255.85,255.78,43.776884]
[1737822605967,0.063,255.85,255.81,0.03]
[1737822606167,0.063,255.85,255.81,0.42075225]
[1737822606371,0.063,255.85,255.81,4.32975225]
[1737822607184,0.063,255.85,255.81,0.42075225]
[1737822607394,0.063,255.85,255.81,0.03]
[1737822607681,0.063,255.85,255.81,4.32991585]
[1737822608860,0.063,255.85,255.81,4.32991585]
[1737822609263,0.063,255.85,255.81,0.42081585]
[1737822609758,0.063,255.85,255.82,0.39080017]
[1737822610575,0.063,255.85,255.82,4.29970017]
[1737822613792,0.063,255.85,255.82,24.29970017]
[1737822615392,0.063,255.85,255.84,3.9086]
[1737822615595,0.063,255.85,255.84,4.29931558]
[1737822615798,0.063,255.85,255.84,28.07619958]
[1737822615974,0.063,255.85,255.84,4.29931558]
[1737822616175,0.063,255.85,255.84,0.39071558]
[1737822616493,0.063,255.85,255.81,0.42077532]
[1737822618983,0.063,255.85,255.81,4.32977532]
[1737822619483,0.063,255.85,255.83,23.776884]
[1737822619680,0.063,255.85,255.84,0.3907248]
[1737822620296,0.063,255.85,255.84,28.0762088]
[1737822623077,0.063,255.85,255.84,4.2993248]
[1737822626889,0.063,255.85,255.81,0.03]
[1737822627201,2.7989,255.85,255.81,0.03]
[1737822628175,0.063,255.85,255.81,0.03]
[1737822629400,0.063,255.85,255.81,0.42082789]
[1737822629590,0.063,255.85,255.81,0.03]
[1737822630371,2.736,255.84,255.81,0.03]
[1737822630572,1.6202,255.83,255.81,0.03]
[1737822631990,2.7362,255.82,255.81,0.03]
[1737822632179,22.7362,255.82,255.7,0.03]
[1737822632380,2.7362,255.82,255.7,0.03]
[1737822632591,9.5769,255.82,255.7,0.03]
[1737822632797,2.7362,255.82,255.7,0.42101301]
[1737822632977,2.7362,255.82,255.71,20.0]
[1737822633301,2.7362,255.82,255.72,0.39094489]
[1737822633896,2.7362,255.82,255.72,28.07832889]
[1737822634198,0.063,255.85,255.72,34.68602889]
[1737822634412,0.063,255.85,255.75,20.0]
[1737822634698,0.063,255.85,255.76,0.39086211]
[1737822635500,0.063,255.85,255.76,4.30066211]
[1737822635998,2.799,255.85,255.74,3.9101]
[1737822636202,2.799,255.85,255.75,0.39089754]
[1737822636997,2.799,255.85,255.73,0.39089796]
[1737822637203,2.799,255.85,255.72,3.9104]
[1737822637415,2.799,255.85,255.7,0.42089796]
[1737822637611,2.799,255.85,255.7,28.10848196]
[1737822638289,2.799,255.85,255.7,4.33159796]
[1737822638483,1.5109,255.81,255.7,0.03]
[1737822639075,20.0,255.77,255.7,0.03]
[1737822639882,21.0,255.76,255.7,0.03]
[1737822640777,1.0,255.75,255.7,0.03]
[1737822641194,20.0,255.72,255.7,0.03]
[1737822641693,2.7366,255.79,255.7,0.03]
[1737822641891,4.2473,255.81,255.7,0.03]
[1737822642293,20.0,255.78,255.7,0.03]
[1737822642505,1.0,255.78,255.7,0.03]
[1737822642690,20.0,255.74,255.7,0.03]
[1737822643185,2.7372,255.73,255.7,0.03]
[1737822645912,45.437484,255.71,255.7,0.03]
[1737822646119,28.3042,255.71,255.7,0.03]
[1737822646906,28.3042,255.71,255.58,0.03]
[1737822646907,52.081084,255.71,255.58,0.03]
[1737822647104,0.6,255.7,255.58,0.03]
[1737822647720,2.7376,255.69,255.58,0.03]
[1737822648328,0.6,255.7,255.58,0.03]
[1737822648823,2.7373,255.73,255.58,24.19805606]
[1737822649018,1.6606,255.74,255.58,24.19805606]
[1737822649319,20.0,255.72,255.58,24.19805606]
[1737822650017,2.7372,255.73,255.59,3.9125]
[1737822650233,2.7372,255.73,255.6,0.39114395]
[1737822651122,20.0,255.72,255.6,0.39114395]
[1737822651331,22.7374,255.72,255.61,3.9122]
[1737822651619,2.7374,255.72,255.61,3.9122]
[1737822652625,2.7374,255.72,255.59,3.9125]
[1737822653900,2.7374,255.72,255.58,0.03]
[1737822654942,2.7374,255.72,255.58,27.719484]
[1737822655124,2.7374,255.72,255.58,3.9426]
[1737822655299,20.0,255.7,255.58,3.9426]
[1737822655819,20.0,255.71,255.58,3.9426]
[1737822656322,2.7375,255.7,255.59,0.39116999]
[1737822656821,0.063,255.72,255.62,20.0]
[1737822657026,0.063,255.72,255.63,0.39111767]
[1737822658435,0.063,255.72,255.64,3.9117]
[1737822660735,0.063,255.72,255.65,24.16797974]
[1737822660912,0.063,255.72,255.68,20.0]
[1737822661236,0.063,255.72,255.71,43.776884]
[1737822661529,0.063,255.82,255.72,23.776884]
[1737822661845,0.063,255.82,255.73,0.39087615]
[1737822662131,0.063,255.82,255.78,23.776884]
[1737822662329,0.063,255.82,255.79,0.39081277]
[1737822663211,0.063,255.82,255.77,6.39]
[1737822663731,0.063,255.82,255.75,20.0]
[1737822663929,0.063,255.82,255.73,0.39091578]
[1737822664518,0.063,255.82,255.74,23.776884]
[1737822664837,0.063,255.82,255.75,0.39087413]
[1737822665317,0.063,255.82,255.78,23.776884]
[1737822665518,0.063,255.82,255.79,0.39079987]
[1737822666328,0.063,255.82,255.8,3.9093]
[1737822666927,0.063,255.82,255.81,24.16772294]
[1737822667230,0.063,255.82,255.81,0.39083894]
[1737822667432,0.063,255.82,255.81,24.16772294]
[1737822668003,0.063,255.82,255.76,3.9098]
[1737822668234,0.063,255.82,255.74,20.0]
[1737822668536,0.063,255.82,255.75,0.39088267]
[1737822669130,0.063,255.82,255.75,24.16776667]
[1737822669511,0.063,255.82,255.79,23.776884]
[1737822669705,0.063,255.82,255.8,0.39079405]
[1737822670311,0.063,255.82,255.8,4.29999405]
[1737822670823,0.063,255.85,255.83,20.0]
[1737822671026,0.063,255.85,255.84,0.39075823]
[1737822671224,0.063,255.85,255.8,3.9092]
[1737822671534,0.063,255.85,255.81,0.39081038]
[1737822671834,0.063,255.85,255.81,24.16769438]
[1737822672518,0.063,255.85,255.82,3.9089]
[1737822672722,0.063,255.85,255.83,0.39079008]
[1737822673638,0.063,255.85,255.83,24.16767408]
[1737822674016,0.063,255.85,255.83,30.57997408]
[1737822674936,0.063,255.85,255.84,3.9086]
[1737822675116,0.063,255.85,255.84,27.685484]
[1737822675429,0.063,255.85,255.84,23.776884]
[1737822675632,0.063,255.85,255.83,0.39079008]
[1737822675934,0.063,255.85,255.81,4.29983012]
[1737822676535,0.063,255.85,255.78,20.0]
[1737822676724,0.063,255.85,255.79,4.300271]
[1737822677032,0.063,255.85,255.8,23.776884]
[1737822677807,0.063,255.85,255.81,0.39083592]
[1737822678030,0.063,255.85,255.79,20.0]
[1737822678421,2.799,255.85,255.71,3.9106]
[1737822678624,2.799,255.85,255.72,0.3908968]
[1737822678829,2.799,255.85,255.75,23.776884]
[1737822679021,2.799,255.85,255.75,0.39088519]
[1737822679738,2.799,255.85,255.76,20.0]
[1737822680235,2.799,255.85,255.73,3.9102]
[1737822680644,2.799,255.85,255.8,0.03]
[1737822681021,20.6,255.84,255.8,0.03]
[1737822681222,20.0,255.81,255.8,0.03]
[1737822681424,1.5468,255.79,255.59,3.9125]
[1737822681723,1.5468,255.79,255.6,0.39108747]
[1737822681928,1.5468,255.79,255.6,24.16797147]
[1737822682126,1.5468,255.79,255.61,3.9122]
[1737822682127,2.7367,255.78,255.61,3.9122]
[1737822682336,2.7367,255.78,255.62,20.39108349]
[1737822682531,2.7367,255.78,255.62,0.39108349]
[1737822682851,2.7367,255.78,255.62,24.16796749]
[1737822683451,22.7367,255.78,255.65,20.0]
[1737822684336,22.7367,255.78,255.66,0.39104467]
[1737822684645,22.7367,255.78,255.67,3.9112]
[1737822684960,22.7367,255.78,255.68,0.39102519]
[1737822685350,1.5468,255.79,255.68,24.16790919]
[1737822685748,0.063,255.85,255.75,20.0]
[1737822685938,0.063,255.85,255.76,24.1677799]
[1737822686252,0.063,255.85,255.76,0.3908959]
[1737822686552,2.799,255.85,255.73,4.30108199]
[1737822686852,2.799,255.85,255.75,20.0]
[1737822687060,2.799,255.85,255.73,3.9102]
[1737822687550,2.799,255.85,255.68,0.39094905]
[1737822687551,20.0,255.81,255.68,0.39094905]
[1737822687748,20.0,255.74,255.58,3.9426]
[1737822687951,20.0,255.74,255.58,0.03]
[1737822688524,2.7372,255.73,255.58,0.03]
[1737822688730,2.7372,255.73,255.58,0.42118998]
[1737822689166,4.8839,255.75,255.58,0.42118998]
[1737822689535,2.1468,255.75,255.58,0.42118998]
[1737822689832,24.8839,255.75,255.6,20.0]